[Event "Czech Open Rapid G1 2024"]
[Site "Pardubice"]
[Date "2024.07.17"]
[Round "2.30"]
[White "Silar, Lubomir"]
[Black "Tesar, Jan"]
[Result "0-1"]
[Annotator "RC"]
[ECO "D02"]
[WhiteElo "1973"]
[BlackElo "1929"]
[PlyCount "66"]
[EventDate "2024.07.16"]
[EventType "swiss"]
[EventCountry "CZE"]
[SourceTitle "playchess.com"]
[Source "ChessBase"]
[SourceQuality "1"]
[TimeControl "1200+10"]

1. d4 {[%emt 0:00:04]} d5 {[%emt 0:01:25]} 2. Nf3 {[%emt 0:00:05]} Nf6 {[%emt 0:00:08]} 3. g3 {[%emt 0:00:06]} Bf5 {[%emt 0:00:07]} 4. Bg2 {[%emt 0:00:03]} h6 {[%emt 0:00:02]} 5. O-O {[%emt 0:00:06]} e6 {[%emt 0:00:02]} 6. c3 {[%emt 0:00:07]} Bd6 {[%emt 0:00:08]} 7. Nbd2 {[%emt 0:00:28]} O-O {[%emt 0:00:04]} 8. Re1 {[%emt 0:00:05]} c5 {[%emt 0:00:22]} 9. Nf1 {[%emt 0:01:08]} Nc6 {[%emt 0:00:04]} 10. dxc5 {[%emt 0:00:22]} Bxc5 {[%emt 0:00:03]} 11. Be3 {[%emt 0:00:22]} Qb6 {[%emt 0:00:23]} 12. Bxc5 {[%emt 0:00:08]} Qxc5 {[%emt 0:00:03]} 13. Ne3 {[%emt 0:00:23]} Bg6 {[%emt 0:00:04]} 14. Nd4 {[%emt 0:00:23]} Rfd8 {[%emt 0:00:26]} 15. Rc1 {[%emt 0:01:38]} a5 {[%emt 0:00:56]} 16. Qd2 {[%emt 0:01:10]} a4 {[%emt 0:00:16]} 17. Nxc6 {[%emt 0:00:28]} bxc6 {[%emt 0:00:07]} 18. Red1 {[%emt 0:00:32]} Qb6 {[%emt 0:00:54]} 19. Re1 {[%emt 0:01:30]} Rab8 {[%emt 0:00:08]} 20. Nd1 {[%emt 0:00:04]} h5 {[%emt 0:01:47]} 21. Qd4 {[%emt 0:00:19]} Qb5 {[%emt 0:00:49]} 22. c4 {[%emt 0:00:59]} Qa5 {[%emt 0:00:51]} 23. Qc3 {[%emt 0:00:15]} Qb6 {[%emt 0:00:55]} 24. c5 {[%emt 0:01:02]} Qb5 {[%emt 0:00:24]} 25. e3 {[%emt 0:00:10]} Ne4 {[%emt 0:01:25]} 26. Qd4 {[%emt 0:01:12]} f6 {[%emt 0:00:24]} 27. Bf1 {[%emt 0:02:08]} Qa5 {[%emt 0:01:12]} 28. Nc3 {[%emt 0:01:44]} Rb4 {[%emt 0:00:57]} 29. Qd1 {[%emt 0:00:58]} Rxb2 {[%emt 0:00:56]} 30. Nxe4 {[%emt 0:00:11]} dxe4 {[%emt 0:00:52]} 31. Bc4 {[%emt 0:01:51]} Rxd1 {[%emt 0:00:14]} 32. Bxe6+ {[%emt 0:00:03]} Kh7 {[%emt 0:00:06]} 33. Rexd1 {[%emt 0:00:03]} Rd2 {[%emt 0:00:10]} 0-1

[Event "Czech Open Rapid G1 2024"]
[Site "Pardubice"]
[Date "2024.07.17"]
[Round "2.31"]
[White "Kudla, Richard"]
[Black "Migalko, Dmitriy"]
[Result "0-1"]
[Annotator "RC"]
[ECO "B21"]
[WhiteElo "2056"]
[BlackElo "1856"]
[PlyCount "82"]
[EventDate "2024.07.16"]
[EventType "swiss"]
[EventCountry "CZE"]
[SourceTitle "playchess.com"]
[Source "ChessBase"]
[SourceQuality "1"]
[TimeControl "1200+10"]

1. e4 {[%emt 0:00:02]} c5 {[%emt 0:00:03]} 2. d4 {[%emt 0:00:08]} cxd4 {[%emt 0:00:06]} 3. c3 {[%emt 0:00:01]} dxc3 {[%emt 0:00:30]} 4. Nxc3 {[%emt 0:00:02]} e6 {[%emt 0:00:07]} 5. Bc4 {[%emt 0:00:05]} Nc6 {[%emt 0:00:05]} 6. Nf3 {[%emt 0:00:03]} Bb4 {[%emt 0:00:22]} 7. O-O {[%emt 0:00:19]} Nge7 {[%emt 0:00:07]} 8. Nb5 {[%emt 0:01:23]} d6 {[%emt 0:00:32]} 9. a3 {[%emt 0:00:09]} Bc5 {[%emt 0:00:14]} 10. b4 {[%emt 0:00:10]} a6 {[%emt 0:00:11]} 11. bxc5 {[%emt 0:01:44]} axb5 {[%emt 0:00:02]} 12. Bxb5 {[%emt 0:00:07]} dxc5 {[%emt 0:01:38]} 13. Qc2 {[%emt 0:01:47]} b6 {[%emt 0:01:45]} 14. Bb2 {[%emt 0:00:03]} O-O {[%emt 0:00:27]} 15. Qc3 {[%emt 0:03:14]} f6 {[%emt 0:00:15]} 16. Bc4 {[%emt 0:00:24]} Kh8 {[%emt 0:00:48]} 17. Rad1 {[%emt 0:04:08]} Qc7 {[%emt 0:00:34]} 18. Bb3 {[%emt 0:00:11]} e5 {[%emt 0:00:29]} 19. Nd2 {[%emt 0:05:15]} Nd4 {[%emt 0:01:06]} 20. Rfe1 {[%emt 0:00:26]} Ba6 {[%emt 0:02:45]} 21. Nc4 {[%emt 0:01:03]} Rac8 {[%emt 0:02:14]} 22. a4 {[%emt 0:00:09]} Ng6 {[%emt 0:01:53]} 23. Bc1 {[%emt 0:02:00]} Nxb3 {[%emt 0:00:46]} 24. Qxb3 {[%emt 0:00:01]} Qf7 {[%emt 0:00:02]} 25. Nd2 {[%emt 0:00:13]} Qxb3 {[%emt 0:00:53]} 26. Nxb3 {[%emt 0:00:01]} Bc4 {[%emt 0:00:30]} 27. Nd2 {[%emt 0:00:06]} Bd3 {[%emt 0:00:05]} 28. Ba3 {[%emt 0:00:10]} Bc2 {[%emt 0:00:29]} 29. Ra1 {[%emt 0:00:10]} Rfd8 {[%emt 0:02:37]} 30. Nc4 {[%emt 0:00:04]} Rb8 {[%emt 0:00:08]} 31. Bb2 {[%emt 0:00:07]} Bb3 {[%emt 0:00:58]} 32. Rec1 {[%emt 0:00:18]} Nf4 {[%emt 0:00:16]} 33. Kf1 {[%emt 0:00:54]} Nd3 {[%emt 0:00:13]} 34. Rc3 {[%emt 0:00:00]} Bxc4 {[%emt 0:00:07]} 35. Rxc4 {[%emt 0:00:05]} Nxb2 {[%emt 0:00:00]} 36. Rc3 {[%emt 0:00:01]} Rd4 {[%emt 0:00:23]} 37. a5 {[%emt 0:00:03]} bxa5 {[%emt 0:00:12]} 38. Rxc5 {[%emt 0:00:00]} a4 {[%emt 0:00:11]} 39. f3 {[%emt 0:00:07]} h6 {[%emt 0:00:05]} 40. Ke2 {[%emt 0:00:02]} Nd3 {[%emt 0:00:13]} 41. Rd5 {[%emt 0:00:38]} Nf4+ {[%emt 0:00:02]} 0-1

[Event "Czech Open Rapid G1 2024"]
[Site "Pardubice"]
[Date "2024.07.17"]
[Round "2.32"]
[White "Garsky, Vladyslav"]
[Black "Gu In-Jung"]
[Result "0-1"]
[Annotator "RC"]
[ECO "B07"]
[WhiteElo "2137"]
[BlackElo "1960"]
[PlyCount "84"]
[EventDate "2024.07.16"]
[EventType "swiss"]
[EventCountry "CZE"]
[SourceTitle "playchess.com"]
[Source "ChessBase"]
[SourceQuality "1"]
[TimeControl "1200+10"]

1. e4 {[%emt 0:00:01]} d6 {[%emt 0:00:14]} 2. d4 {[%emt 0:00:04]} Nf6 {[%emt 0:00:02]} 3. Bd3 {[%emt 0:00:01]} e5 {[%emt 0:00:02]} 4. Nf3 {[%emt 0:00:33]} Nbd7 {[%emt 0:00:06]} 5. c3 {[%emt 0:00:16]} c6 {[%emt 0:00:32]} 6. O-O {[%emt 0:00:02]} Be7 {[%emt 0:00:03]} 7. Re1 {[%emt 0:00:18]} Qc7 {[%emt 0:00:02]} 8. Nbd2 {[%emt 0:00:06]} O-O {[%emt 0:13:35]} 9. a4 {[%emt 0:00:27]} Re8 {[%emt 0:00:09]} 10. a5 {[%emt 0:00:46]} Nf8 {[%emt 0:00:41]} 11. Nf1 {[%emt 0:00:58]} Ng6 {[%emt 0:00:57]} 12. Ng3 {[%emt 0:00:05]} Bf8 {[%emt 0:00:17]} 13. Bd2 {[%emt 0:03:01]} h6 {[%emt 0:01:46]} 14. Qc2 {[%emt 0:03:27]} Bd7 {[%emt 0:00:07]} 15. h3 {[%emt 0:00:25]} Rad8 {[%emt 0:00:09]} 16. b4 {[%emt 0:01:17]} c5 {[%emt 0:00:21]} 17. bxc5 {[%emt 0:00:58]} dxc5 {[%emt 0:00:07]} 18. dxe5 {[%emt 0:00:01]} Nxe5 {[%emt 0:00:03]} 19. Nxe5 {[%emt 0:00:01]} Qxe5 {[%emt 0:00:07]} 20. f4 {[%emt 0:00:16]} Qc7 {[%emt 0:00:01]} 21. e5 {[%emt 0:00:34]} c4 {[%emt 0:02:29]} 22. Bf5 {[%emt 0:00:01]} Bxf5 {[%emt 0:00:12]} 23. Nxf5 {[%emt 0:00:02]} Bc5+ {[%emt 0:00:47]} 24. Kh1 {[%emt 0:00:08]} Nh5 {[%emt 0:00:06]} 25. Rad1 {[%emt 0:02:24]} Rd3 {[%emt 0:00:16]} 26. Bc1 {[%emt 0:00:37]} Qd7 {[%emt 0:00:01]} 27. Nd4 {[%emt 0:00:50]} Ng3+ {[%emt 0:00:26]} 28. Kh2 {[%emt 0:00:03]} Bxd4 {[%emt 0:00:02]} 29. cxd4 {[%emt 0:00:21]} Qxd4 {[%emt 0:00:10]} 30. Be3 {[%emt 0:00:52]} Qe4 {[%emt 0:00:55]} 31. Qf2 {[%emt 0:00:18]} Nf5 {[%emt 0:00:11]} 32. Bxa7 {[%emt 0:00:06]} Qd5 {[%emt 0:00:02]} 33. Rxd3 {[%emt 0:00:05]} cxd3 {[%emt 0:00:01]} 34. Bb6 {[%emt 0:00:03]} Rc8 {[%emt 0:00:05]} 35. Rd1 {[%emt 0:00:19]} Rc2 {[%emt 0:00:05]} 36. Rd2 {[%emt 0:00:01]} Qa2 {[%emt 0:00:09]} 37. Rxc2 {[%emt 0:00:10]} Qxc2 {[%emt 0:00:01]} 38. Qf3 {[%emt 0:01:02]} d2 {[%emt 0:00:06]} 39. Qxb7 {[%emt 0:00:03]} d1=Q {[%emt 0:00:04]} 40. a6 {[%emt 0:00:00]} Qcb1 {[%emt 0:00:15]} 41. Qc8+ {[%emt 0:00:10]} Kh7 {[%emt 0:00:03]} 42. Qxf5+ {[%emt 0:00:01]} Qxf5 {[%emt 0:00:01]} 0-1

[Event "Czech Open Rapid G1 2024"]
[Site "Pardubice"]
[Date "2024.07.17"]
[Round "2.33"]
[White "Svoboda, Petr"]
[Black "Eropunov, Gleb"]
[Result "0-1"]
[Annotator "RC"]
[ECO "A07"]
[WhiteElo "1935"]
[BlackElo "2190"]
[PlyCount "62"]
[EventDate "2024.07.16"]
[EventType "swiss"]
[EventCountry "CZE"]
[SourceTitle "playchess.com"]
[Source "ChessBase"]
[SourceQuality "1"]
[TimeControl "1200+10"]

1. Nf3 {[%emt 0:00:07]} Nf6 {[%emt 0:00:02]} 2. b3 {[%emt 0:00:02]} d5 {[%emt 0:00:11]} 3. Bb2 {[%emt 0:00:02]} Bf5 {[%emt 0:01:04]} 4. g3 {[%emt 0:00:27]} e6 {[%emt 0:00:27]} 5. Bg2 {[%emt 0:00:07]} Be7 {[%emt 0:00:13]} 6. Nh4 {[%emt 0:00:41]} Be4 {[%emt 0:02:22]} 7. f3 {[%emt 0:00:44]} Bg6 {[%emt 0:00:59]} 8. Nxg6 {[%emt 0:00:07]} hxg6 {[%emt 0:00:03]} 9. O-O {[%emt 0:00:10]} Nbd7 {[%emt 0:00:15]} 10. d4 {[%emt 0:00:14]} c5 {[%emt 0:00:56]} 11. e3 {[%emt 0:00:58]} O-O {[%emt 0:05:34]} 12. c4 {[%emt 0:00:26]} Rc8 {[%emt 0:01:21]} 13. Qe2 {[%emt 0:00:43]} Qa5 {[%emt 0:00:37]} 14. Bc3 {[%emt 0:04:59]} Qa6 {[%emt 0:00:23]} 15. Nd2 cxd4 {[%emt 0:00:14]} 16. exd4 {[%emt 0:00:19]} Nb6 {[%emt 0:01:51]} 17. f4 {[%emt 0:04:19]} dxc4 {[%emt 0:00:10]} 18. bxc4 {[%emt 0:02:41]} Nxc4 {[%emt 0:00:05]} 19. Rab1 {[%emt 0:01:17]} Qa3 {[%emt 0:02:02]} 20. Rb3 {[%emt 0:00:39]} Qxa2 {[%emt 0:00:08]} 21. Ra1 {[%emt 0:00:01]} Qc2 {[%emt 0:00:01]} 22. Rab1 {[%emt 0:01:22]} Na3 {[%emt 0:01:24]} 23. Bb4 {[%emt 0:03:19]} Nxb1 {[%emt 0:00:24]} 24. Rxb1 {[%emt 0:00:06]} Bxb4 {[%emt 0:00:09]} 25. Rxb4 {[%emt 0:00:01]} Qc3 {[%emt 0:00:29]} 26. Rxb7 {[%emt 0:00:12]} Qxd4+ {[%emt 0:00:06]} 27. Kh1 {[%emt 0:00:09]} Rc1+ {[%emt 0:00:12]} 28. Nf1 {[%emt 0:00:02]} Nd5 {[%emt 0:00:39]} 29. h3 {[%emt 0:00:19]} Ne3 {[%emt 0:00:15]} 30. Kh2 {[%emt 0:00:07]} Rc2 {[%emt 0:00:09]} 31. Qxe3 {[%emt 0:00:02]} Qd5 {[%emt 0:00:10]} 0-1

[Event "Czech Open Rapid G1 2024"]
[Site "Pardubice"]
[Date "2024.07.17"]
[Round "2.35"]
[White "Kroulik, Vaclav"]
[Black "Kastner, Oldrich"]
[Result "0-1"]
[Annotator "RC"]
[ECO "B03"]
[WhiteElo "1976"]
[BlackElo "2004"]
[PlyCount "68"]
[EventDate "2024.07.16"]
[EventType "swiss"]
[EventCountry "CZE"]
[SourceTitle "playchess.com"]
[Source "ChessBase"]
[SourceQuality "1"]
[TimeControl "1200+10"]

1. e4 {[%emt 0:00:03]} Nf6 {[%emt 0:00:03]} 2. e5 {[%emt 0:00:07]} Nd5 {[%emt 0:00:02]} 3. d4 {[%emt 0:00:08]} d6 {[%emt 0:00:01]} 4. exd6 {[%emt 0:00:10]} exd6 {[%emt 0:00:16]} 5. c4 {[%emt 0:00:06]} Nb6 {[%emt 0:00:14]} 6. Nc3 {[%emt 0:00:30]} Be7 {[%emt 0:00:07]} 7. Bd3 {[%emt 0:00:44]} Nc6 {[%emt 0:00:17]} 8. Be3 {[%emt 0:00:23]} Nb4 {[%emt 0:01:04]} 9. Be2 {[%emt 0:00:34]} Bf5 {[%emt 0:00:21]} 10. Rc1 {[%emt 0:00:02]} O-O {[%emt 0:00:23]} 11. Nf3 {[%emt 0:00:14]} Bf6 {[%emt 0:01:03]} 12. a3 {[%emt 0:00:54]} Nc6 {[%emt 0:00:08]} 13. b4 {[%emt 0:00:52]} Re8 {[%emt 0:00:26]} 14. O-O {[%emt 0:00:11]} Ne7 {[%emt 0:01:55]} 15. d5 {[%emt 0:03:13]} Bg6 {[%emt 0:00:28]} 16. Qb3 {[%emt 0:02:25]} Nf5 {[%emt 0:00:46]} 17. Nd1 {[%emt 0:02:42]} a5 {[%emt 0:02:40]} 18. Bd3 {[%emt 0:00:52]} axb4 {[%emt 0:00:29]} 19. axb4 {[%emt 0:00:13]} Nxe3 {[%emt 0:00:55]} 20. Nxe3 {[%emt 0:00:09]} Bxd3 {[%emt 0:00:29]} 21. Qxd3 {[%emt 0:00:01]} g6 {[%emt 0:00:17]} 22. c5 {[%emt 0:00:37]} Na4 {[%emt 0:00:57]} 23. Rc2 {[%emt 0:01:30]} Bg7 {[%emt 0:00:33]} 24. Qb5 {[%emt 0:00:26]} Nc3 {[%emt 0:02:21]} 25. Qxb7 {[%emt 0:00:12]} Rb8 {[%emt 0:00:01]} 26. Qc6 {[%emt 0:00:03]} Qf6 {[%emt 0:01:40]} 27. h3 {[%emt 0:03:15]} Nb5 {[%emt 0:02:12]} 28. cxd6 {[%emt 0:00:40]} cxd6 {[%emt 0:00:05]} 29. Rfc1 {[%emt 0:01:02]} Bh6 {[%emt 0:00:07]} 30. Ng4 {[%emt 0:00:04]} Qg7 {[%emt 0:00:25]} 31. Nxh6+ {[%emt 0:00:03]} Qxh6 {[%emt 0:00:01]} 32. Rc4 {[%emt 0:00:16]} Qg7 {[%emt 0:00:25]} 33. Qd7 {[%emt 0:00:35]} Qf8 {[%emt 0:00:47]} 34. Ng5 {[%emt 0:00:42]} Red8 {[%emt 0:01:45]} 0-1

[Event "Czech Open Rapid G1 2024"]
[Site "Pardubice"]
[Date "2024.07.17"]
[Round "2.36"]
[White "Dehmel, Jens"]
[Black "Park, Inchan"]
[Result "0-1"]
[Annotator "RC"]
[ECO "A50"]
[WhiteElo "1980"]
[BlackElo "1856"]
[PlyCount "87"]
[EventDate "2024.07.16"]
[EventType "swiss"]
[EventCountry "CZE"]
[SourceTitle "playchess.com"]
[Source "ChessBase"]
[SourceQuality "1"]
[TimeControl "1200+10"]

1. d4 {[%emt 0:00:01]} Nf6 {[%emt 0:00:01]} 2. c4 {[%emt 0:00:01]} b6 {[%emt 0:00:01]} 3. Nc3 {[%emt 0:00:03]} Bb7 {[%emt 0:00:01]} 4. Qc2 {[%emt 0:00:16]} d5 {[%emt 0:00:01]} 5. cxd5 {[%emt 0:00:01]} Nxd5 {[%emt 0:00:02]} 6. e4 {[%emt 0:00:03]} Nxc3 {[%emt 0:00:06]} 7. bxc3 {[%emt 0:00:01]} e6 {[%emt 0:00:02]} 8. Bb5+ {[%emt 0:00:15]} c6 {[%emt 0:00:04]} 9. Ba4 {[%emt 0:00:01]} Be7 {[%emt 0:00:02]} 10. Nf3 {[%emt 0:00:02]} O-O {[%emt 0:00:02]} 11. O-O {[%emt 0:00:02]} c5 {[%emt 0:00:03]} 12. Rd1 {[%emt 0:00:04]} Qc7 {[%emt 0:00:29]} 13. Qe2 {[%emt 0:00:06]} Nd7 {[%emt 0:01:30]} 14. Bg5 {[%emt 0:00:03]} Nf6 {[%emt 0:00:24]} 15. Bc2 {[%emt 0:03:23]} Rac8 {[%emt 0:00:34]} 16. Rac1 {[%emt 0:00:06]} h6 {[%emt 0:00:05]} 17. Bh4 {[%emt 0:00:12]} Rfd8 {[%emt 0:02:16]} 18. e5 {[%emt 0:00:54]} Nd5 {[%emt 0:00:36]} 19. Qd3 {[%emt 0:00:26]} g6 {[%emt 0:00:02]} 20. Bxe7 {[%emt 0:00:02]} Qxe7 {[%emt 0:00:04]} 21. Bb1 {[%emt 0:01:00]} c4 {[%emt 0:04:03]} 22. Qc2 {[%emt 0:00:35]} Nf4 {[%emt 0:00:32]} 23. Ne1 {[%emt 0:00:54]} b5 {[%emt 0:03:47]} 24. g3 {[%emt 0:00:02]} Nd5 {[%emt 0:00:30]} 25. h4 {[%emt 0:00:12]} h5 {[%emt 0:00:13]} 26. Nf3 {[%emt 0:01:52]} a5 {[%emt 0:00:19]} 27. Ng5 {[%emt 0:01:01]} b4 {[%emt 0:00:21]} 28. cxb4 {[%emt 0:01:03]} axb4 {[%emt 0:00:06]} 29. Ne4 {[%emt 0:01:58]} Ba6 {[%emt 0:02:16]} 30. Qe2 {[%emt 0:01:30]} Rc6 {[%emt 0:01:21]} 31. Nd6 {[%emt 0:01:31]} Rd7 {[%emt 0:00:48]} 32. Be4 {[%emt 0:01:06]} c3 {[%emt 0:01:13]} 33. Qf3 {[%emt 0:00:15]} Bc4 {[%emt 0:01:32]} 34. Nxc4 {[%emt 0:04:01]} Rxc4 {[%emt 0:00:01]} 35. Bc2 {[%emt 0:00:01]} Nb6 {[%emt 0:00:25]} 36. Bb3 {[%emt 0:00:16]} Rcxd4 {[%emt 0:00:10]} 37. Rxd4 {[%emt 0:00:10]} Rxd4 {[%emt 0:00:00]} 38. Qc6 {[%emt 0:00:10]} Nd7 {[%emt 0:01:24]} 39. f4 {[%emt 0:00:21]} Qc5 {[%emt 0:00:20]} 40. Qxc5 {[%emt 0:00:33]} Nxc5 {[%emt 0:00:03]} 41. Kf2 {[%emt 0:00:10]} Nxb3 {[%emt 0:00:23]} 42. axb3 {[%emt 0:00:01]} Rd2+ {[%emt 0:00:01]} 43. Ke3 {[%emt 0:00:07]} Rb2 {[%emt 0:00:01]} 44. Ra1 {[%emt 0:00:18]} 0-1

[Event "Czech Open Rapid G1 2024"]
[Site "Pardubice"]
[Date "2024.07.17"]
[Round "3.1"]
[White "Dobrowolski, Piotr"]
[Black "Navara, David"]
[Result "0-1"]
[Annotator "TA"]
[ECO "B94"]
[WhiteElo "2412"]
[BlackElo "2682"]
[PlyCount "88"]
[EventDate "2024.07.16"]
[EventType "swiss"]
[EventCountry "CZE"]
[SourceTitle "playchess.com"]
[Source "ChessBase"]
[SourceQuality "1"]
[TimeControl "1200+10"]

{[%evp 11,88,8,16,10,13,8,18,14,17,19,38,9,36,37,38,31,52,18,22,18,37,54,38,28,32,31,41,33,28,22,16,17,32,-1,-1,-6,-14,-56,-46,-83,-82,-81,-91,-89,-89,-88,-88,-88,-88,-85,-85,-168,-154,-247,-215,-239,-244,-248,-252,-255,-254,-250,-239,-237,-239,-1759,-1781,-1727,-1641,-2302,-2116,-2312,-2202,-2129,-2511,-29978,-29979,-29978,-29979]} 1. e4 {[%emt 0:00:06]} c5 {[%emt 0:00:01]} 2. Nf3 {[%emt 0:00:03]} d6 {[%emt 0:00:02]} 3. d4 {[%emt 0:00:02]} cxd4 {[%emt 0:00:02]} 4. Nxd4 {[%emt 0:00:02]} Nf6 {[%emt 0:00:02]} 5. Nc3 {[%emt 0:00:02]} a6 {[%emt 0:00:01]} 6. Bg5 {[%emt 0:00:17]} Nbd7 {[%emt 0:00:02]} 7. Qe2 {[%emt 0:00:01]} h6 {[%emt 0:00:27]} 8. Bh4 {[%emt 0:00:04]} g6 {[%emt 0:00:08]} 9. f4 {[%emt 0:01:17] With the idea e5. The position is equal.} e5 {[%emt 0:00:02]} 10. fxe5 {[%emt 0:00:06]} dxe5 {[%emt 0:00:02] [#]} 11. O-O-O $1 {[%emt 0:00:09][%cal Oc3d5]} Bg7 {[%emt 0:00:15]} (11... exd4 12. e5 dxc3 (12... d3 $2 13. Rxd3 Qe7 14. Re3 $18) 13. exf6+ $18) (11... Qc7 $5) (11... Qc7 12. Nb3) 12. Nb3 {[%emt 0:00:28]} b5 {[%emt 0:03:51][%cal Bb7b5,Bb5b4][%mdl 32]} 13. Kb1 {[%emt 0:01:28]} O-O {[%emt 0:00:56]} 14. g4 {[%emt 0:00:43]} b4 {[%emt 0:01:37]} 15. Nd5 {[%emt 0:00:34][%cal Ob3c5]} a5 {[%emt 0:02:26] [#]} 16. Nc5 $1 {[%emt 0:05:14] Nxf6+ would now be deadly.} g5 {[%emt 0:00:11]} 17. Bf2 {[%emt 0:02:49]} Nxd5 $1 {[%emt 0:02:33]} 18. exd5 {[%emt 0:00:44]} Nxc5 {[%emt 0:01:55]} 19. Bxc5 {[%emt 0:00:02]} Qf6 $1 {[%emt 0:04:14]} 20. Qe4 {[%emt 0:03:32]} Qf4 {[%emt 0:01:15]} 21. Qxf4 {[%emt 0:01:00]} gxf4 {[%emt 0:00:01] Black is weak on the light squares} 22. Bxf8 {[%emt 0:01:28]} (22. Rg1 $5) 22... Kxf8 {[%emt 0:00:06]} 23. h3 {[%emt 0:00:29]} e4 {[%emt 0:00:29]} 24. Re1 {[%emt 0:01:37]} Bb7 {[%emt 0:01:19]} 25. Rxe4 {[%emt 0:01:49]} Bxd5 {[%emt 0:00:02]} 26. Bg2 {[%emt 0:00:01][%cal Oh1e1]} Bxe4 {[%emt 0:00:04]} 27. Bxe4 $17 {[%emt 0:00:01][%mdl 4096] Endgame. KRB-KRB} Re8 {[%emt 0:00:05]} 28. Bf3 {[%emt 0:00:18]} Re3 {[%emt 0:00:05]} 29. Rf1 {[%emt 0:00:01]} Be5 {[%emt 0:00:55] Black is more active.} 30. Kc1 {[%emt 0:00:11]} Kg7 {[%emt 0:00:38]} 31. c4 {[%emt 0:00:28]} (31. h4 $17 {might work better.}) 31... bxc3 $19 {[%emt 0:00:06]} 32. b3 {[%emt 0:00:01]} (32. bxc3 $17 {was necessary.} Rxc3+ 33. Kb1) 32... Kf6 {[%emt 0:01:23] White must now prevent ...Kg5.} 33. h4 {[%emt 0:00:05]} Rd3 {[%emt 0:00:12]} 34. Rf2 {[%emt 0:00:01]} Bd4 {[%emt 0:00:04]} 35. Kc2 {[%emt 0:00:00]} Re3 {[%emt 0:00:09]} (35... Bxf2 36. Kxd3 Bxh4 37. Kxc3 $15) 36. Rf1 {[%emt 0:00:14]} Ke5 {[%emt 0:00:11]} 37. Rf2 {[%emt 0:00:31]} f6 {[%emt 0:00:10]} 38. Re2 $2 {[%emt 0:00:19]} (38. Rf1) 38... Rxe2+ {[%emt 0:00:02]} 39. Bxe2 {[%emt 0:00:01] KB-KB} Ke4 {[%emt 0:00:01] aiming for ...f3.} 40. Bb5 {[%emt 0:00:17]} f3 {[%emt 0:00:09] ...Kf4 is the strong threat.} 41. a3 {[%emt 0:00:01]} Kf4 {[%emt 0:00:11]} 42. h5 {[%emt 0:00:20]} Kxg4 {[%emt 0:00:07]} 43. Be8 {[%emt 0:00:11]} f2 {[%emt 0:00:24]} 44. Bb5 {[%emt 0:00:01]} Kg3 {[%emt 0:00:11] Weighted Error Value: White=0.56/Black=0.03 (flawless) .  Mistake:       	White=3     	---        Inaccurate:     	White=4     	Black=1      OK:         	White=14    	Black=17     Best:        	White=2     	Black=5      Strong:       	---       	Black=2} 0-1

[Event "Czech Open Rapid G1 2024"]
[Site "Pardubice"]
[Date "2024.07.17"]
[Round "3.2"]
[White "Nisipeanu, Liviu-Dieter"]
[Black "Burdalev, Kirill"]
[Result "1-0"]
[Annotator "TA"]
[ECO "C67"]
[WhiteElo "2583"]
[BlackElo "2348"]
[PlyCount "61"]
[EventDate "2024.07.16"]
[EventType "swiss"]
[EventCountry "CZE"]
[SourceTitle "playchess.com"]
[Source "ChessBase"]
[SourceQuality "1"]
[TimeControl "1200+10"]

{[%evp 18,61,-2,-6,-8,-8,0,-25,-3,-10,0,15,34,14,27,19,19,18,12,14,11,12,15,22,36,25,31,0,0,0,75,77,70,52,246,81,577,585,577,565,614,625,2459,2362,29997,110]} 1. e4 {[%emt 0:00:03]} e5 {[%emt 0:00:01]} 2. Nf3 {[%emt 0:00:04]} Nc6 {[%emt 0:00:01]} 3. Bb5 {[%emt 0:00:04]} Nf6 {[%emt 0:00:01]} 4. O-O {[%emt 0:00:19]} Nxe4 {[%emt 0:00:02]} 5. d4 {[%emt 0:00:06]} Nd6 {[%emt 0:00:05]} 6. Bxc6 {[%emt 0:00:18]} dxc6 {[%emt 0:00:01]} 7. dxe5 {[%emt 0:00:03]} Nf5 {[%emt 0:00:00]} 8. Qe2 {[%emt 0:00:01]} Nd4 {[%emt 0:00:14]} 9. Nxd4 {[%emt 0:00:02]} Qxd4 {[%emt 0:00:00]} 10. h3 {[%emt 0:00:03] Weiss ist schwach auf den weissen Feldern} Be6 {[%emt 0:01:34]} 11. Rd1 {[%emt 0:00:26][%cal Bf1d1,Bd1d3,Bd3f3][%mdl 32]} Qc4 {[%emt 0:00:28]} 12. Rd3 {[%emt 0:00:04]} Be7 {[%emt 0:00:20] Schwarz hat minimalen Vorteil.} ({Vergiftet wäre} 12... Bf5 $2 13. Rd8+ Rxd8 14. Qxc4 $18) 13. Nc3 {[%emt 0:02:44]} O-O {[%emt 0:00:31]} 14. b3 {[%emt 0:00:12]} Qh4 {[%emt 0:00:49]} 15. Ne4 {[%emt 0:04:19]} Rad8 {[%emt 0:03:11] Pariert Rd4.} 16. Rf3 {[%emt 0:00:55] Schwarz muss nun Rf4 beachten.} Qh5 {[%emt 0:00:01] [#]} 17. Nf6+ $1 {[%emt 0:00:49]} Bxf6 {[%emt 0:00:25]} 18. exf6 {[%emt 0:00:02]} Bd5 {[%emt 0:04:02]} 19. Re3 {[%emt 0:00:12]} ({Aber nicht} 19. fxg7 $2 Rfe8 (19... Bxf3 $2 {verliert.} 20. gxf8=Q+ Rxf8 21. Qxf3 $18) 20. Be3 Bxf3 21. Qxf3 Qd5 $19 (21... Qxf3 $2 22. gxf3 Kxg7 23. Kh2 $19)) 19... Qxe2 {[%emt 0:00:05]} (19... Qg5 {ist vielschichtiger.} 20. Rg3 Qxf6 21. Rb1 Rfe8) 20. Rxe2 {[%emt 0:00:02]} gxf6 {[%emt 0:01:18]} 21. Re3 {[%emt 0:00:31] Zielt auf c4 ab.} h5 {[%emt 0:01:43]} 22. c4 {[%emt 0:00:45]} Be6 {[%emt 0:00:05]} 23. Bb2 {[%emt 0:00:02]} Kh7 {[%emt 0:01:29]} (23... f5 $11) 24. Bxf6 $16 {[%emt 0:00:08]} Rd2 {[%emt 0:00:04]} 25. Rae1 {[%emt 0:02:24]} Kg6 $2 {[%emt 0:00:21] [#]} (25... Rg8 $14) 26. Be7 $2 {[%emt 0:00:03]} (26. Bc3 $1 $18 Rfd8 27. Rg3+ Kh6 28. Bxd2+ Rxd2 29. a4) 26... Re8 $2 {[%emt 0:00:42][%mdl 8192]} (26... Rg8 $16 {ist zäher.}) 27. Rg3+ $18 {[%emt 0:00:04]} Kh7 {[%emt 0:00:14] [#]} 28. Re5 $1 {[%emt 0:00:12][%cal Re5h5]} Rd1+ {[%emt 0:04:52]} (28... f5 29. Rxe6) 29. Kh2 {[%emt 0:00:03]} Kh6 {[%emt 0:00:01]} 30. Bf6 {[%emt 0:00:07] Beabsichtigt Bg7+ und Matt.} Bd7 {[%emt 0:01:03]} 31. Bg7+ {[%emt 0:00:04] Gewichteter Fehlerwert: Weiß=0.17 (sehr präzise) /Schwarz=0.77.  Verlustzug:     	---       	Schwarz=2     Gewinn verpasst:   	Weiß=1     	---        Fehler:       	---       	Schwarz=1     Ungenau:       	Weiß=1     	Schwarz=1     OK:         	Weiß=7     	Schwarz=4     Bester:       	Weiß=3     	Schwarz=2     Stark:        	Weiß=1     	---} 1-0